[Event "83rd ESP-ch Women-ch 2018"]
[Site "Linares"]
[Date "2018.08.24"]
[Round "5"]
[White "Tudela Corbalan, Carlos"]
[Black "Antunez Munoz, Ines"]
[Result "1-0"]
[ECO "A25"]
[WhiteElo "2246"]
[BlackElo "1956"]
[Annotator "NA"]
[PlyCount "95"]
[EventDate "2018.08.09"]
[EventType "tourn"]
[EventCountry "ESP"]
[SourceTitle "playchess.com"]
[Source "ChessBase"]
[SourceQuality "1"]
[TimeControl "40/5400+30:1800+30"]

1. c4 {[%emt 0:00:00]} e5 {[%emt 0:00:00]} 2. Nc3 {[%emt 0:00:00]} Nc6 {[%emt 0:00:19]} 3. g3 {[%emt 0:00:06]} Bc5 {[%emt 0:00:23]} 4. Bg2 {[%emt 0:00:14]} d6 {[%emt 0:00:25]} 5. e3 {[%emt 0:00:41]} a6 {[%emt 0:00:32] A25: English Opening vs King's Indian with ...Nc6 but without early d3} 6. Nge2 {[%emt 0:00:14]} (6. Nf3 Nf6 7. O-O O-O 8. h3 Ba7 9. d4 h6 10. dxe5 dxe5 11. Qxd8 Rxd8 12. b3 Be6 13. Ba3 Rd7 14. Rfd1 Rad8 15. Rxd7 Rxd7 {½-½ (41) Howell,D (2676)-Ponomariov,R (2694) Riadh 2017}) 6... Ba7 {[%emt 0:00:38]} 7. b3 {[%emt 0:00:55]} Nge7 {[%emt 0:03:54]} 8. Bb2 {[%emt 0:00:29]} O-O {[%emt 0:00:52]} 9. d4 {[%emt 0:07:11]} exd4 $146 {[%emt 0:01:53]} ({Predecessor:} 9... Re8 10. O-O exd4 11. Nxd4 Bd7 12. Qd2 Rb8 13. Nce2 Ne5 14. Nf3 {½-½ (14) Laqua,C (2139)-Bruhn,B (2152) Germany 2013}) 10. exd4 {[%emt 0:01:47]} Nf5 {[%emt 0:02:02]} 11. Nd5 {[%emt 0:04:01]} Re8 {[%emt 0:16:07]} 12. O-O {[%emt 0:00:55]} Rb8 {[%emt 0:06:09]} 13. Qd2 {[%emt 0:10:04]} Nce7 {[%emt 0:13:27]} 14. Nxe7+ {[%emt 0:02:50]} Qxe7 {[%emt 0:02:55]} 15. Nf4 {[%emt 0:02:34]} Qg5 {[%emt 0:04:41]} 16. Rad1 {[%emt 0:05:41]} Bd7 {[%emt 0:03:11]} 17. Qc3 {[%emt 0:08:05]} h5 {[%emt 0:12:06]} 18. Nd5 {[%emt 0:19:04]} c6 {[%emt 0:05:41]} 19. Bc1 {[%emt 0:02:22]} Qg6 {[%emt 0:04:56]} 20. Nf4 {[%emt 0:04:03]} Qh6 {[%emt 0:00:57]} 21. c5 {[%emt 0:00:59]} h4 {[%emt 0:08:37]} 22. g4 {[%emt 0:05:53]} Ne7 {[%emt 0:00:49]} 23. h3 {[%emt 0:01:36]} Qf6 {[%emt 0:02:56]} 24. Nh5 {[%emt 0:07:34]} Qg6 {[%emt 0:00:39]} 25. Nf4 {[%emt 0:01:20]} Qf6 {[%emt 0:01:41]} 26. b4 {[%emt 0:00:08]} Rbd8 {[%emt 0:01:08]} 27. Rfe1 {[%emt 0:00:48]} d5 {[%emt 0:02:31]} 28. Re5 {[%emt 0:02:28]} g6 {[%emt 0:03:15]} 29. Rde1 {[%emt 0:01:59]} Nc8 {[%emt 0:01:04]} 30. Nd3 {[%emt 0:04:16]} Bb8 {[%emt 0:00:35]} 31. Bg5 {[%emt 0:01:10]} Qg7 {[%emt 0:00:16]} 32. Bxd8 {[%emt 0:00:28]} Bxe5 {[%emt 0:00:41]} 33. Nxe5 {[%emt 0:00:10]} Rxd8 {[%emt 0:00:10]} 34. Nxd7 {[%emt 0:00:06]} Rxd7 {[%emt 0:00:41]} 35. Re8+ {[%emt 0:00:06]} Kh7 {[%emt 0:00:17]} 36. Rxc8 {[%emt 0:00:44]} Re7 {[%emt 0:00:33]} 37. g5 {[%emt 0:01:05]} f6 {[%emt 0:00:57]} 38. Qd2 {[%emt 0:00:59]} fxg5 {[%emt 0:00:30]} 39. Qxg5 {[%emt 0:00:57]} Re1+ {[%emt 0:00:25]} 40. Kh2 {[%emt 0:00:55]} Qe7 {[%emt 0:00:28]} 41. Qxe7+ {[%emt 0:30:22]} Rxe7 {[%emt 0:30:07]} 42. a4 $18 {[%emt 0:00:16]} Kh6 {[%emt 0:00:28]} 43. Rb8 {[%emt 0:00:52]} Rf7 {[%emt 0:00:24]} 44. Kg1 {[%emt 0:01:14]} Kg5 {[%emt 0:00:13]} 45. b5 {[%emt 0:00:14]} axb5 {[%emt 0:00:19]} 46. axb5 {[%emt 0:00:06]} Kf4 {[%emt 0:00:34]} 47. b6 {[%emt 0:00:12]} Kg5 {[%emt 0:00:49]} 48. Rc8 {[%emt 0:00:10]} 1-0

[Event "83rd ESP-ch Women-ch 2018"]
[Site "Linares"]
[Date "2018.08.24"]
[Round "5"]
[White "Garcia Romero, Benjamin Abel"]
[Black "Teran Alvarez, Ismael"]
[Result "0-1"]
[ECO "B42"]
[WhiteElo "2230"]
[BlackElo "2377"]
[Annotator "NA"]
[PlyCount "84"]
[EventDate "2018.08.09"]
[EventType "tourn"]
[EventCountry "ESP"]
[SourceTitle "playchess.com"]
[Source "ChessBase"]
[SourceQuality "1"]
[TimeControl "40/5400+30:1800+30"]

1. e4 {[%emt 0:00:00]} c5 {[%emt 0:02:47]} 2. Nf3 {[%emt 0:00:00]} e6 {[%emt 0:00:23]} 3. d4 {[%emt 0:00:03]} cxd4 {[%emt 0:00:08]} 4. Nxd4 {[%emt 0:00:08]} a6 {[%emt 0:00:28]} 5. Bd3 {[%emt 0:04:53]} Qc7 {[%emt 0:01:55]} 6. Qe2 {[%emt 0:06:01]} d6 {[%emt 0:02:57]} 7. O-O {[%emt 0:09:19]} Nf6 {[%emt 0:01:52]} 8. f4 {[%emt 0:06:09]} Be7 {[%emt 0:02:21] B42: Sicilian: Kan Variation: 5 Bd3} 9. Kh1 {[%emt 0:01:43]} O-O {[%emt 0:06:41]} 10. Bd2 {[%emt 0:09:19]} Nbd7 {[%emt 0:09:33]} 11. Nc3 {[%emt 0:02:53]} b5 {[%emt 0:03:28]} 12. Rae1 {[%emt 0:04:00]} b4 {[%emt 0:20:08]} 13. Nd1 {[%emt 0:00:47] [#]} Rb8 $146 {[%emt 0:06:40]} ({Predecessor:} 13... Qb6 14. Be3 Qb7 15. Bg1 g6 16. c4 e5 17. Nf3 exf4 18. e5 dxe5 19. Nxe5 {0-1 (25) Al Hajiri,B (2165)-Almasi,Z (2682) Riadh 2017}) 14. e5 {[%emt 0:11:16]} Nd5 {[%emt 0:02:21]} 15. Nf2 {[%emt 0:11:33]} Nc5 {[%emt 0:08:47]} 16. Bc4 {[%emt 0:13:36]} Bb7 {[%emt 0:02:34]} 17. Ng4 {[%emt 0:00:31]} Nb6 {[%emt 0:08:25]} 18. Bd3 {[%emt 0:07:42]} Nxd3 {[%emt 0:02:12]} 19. cxd3 {[%emt 0:02:23]} Qc5 {[%emt 0:00:41]} 20. Be3 {[%emt 0:03:35]} Qd5 {[%emt 0:00:56]} 21. Bg1 {[%emt 0:01:15]} dxe5 {[%emt 0:03:38]} 22. fxe5 {[%emt 0:02:13]} Nd7 {[%emt 0:01:14]} 23. Rf3 {[%emt 0:01:09]} a5 {[%emt 0:07:59]} 24. Rh3 {[%emt 0:00:30]} Bc5 {[%emt 0:00:40]} 25. Nf3 {[%emt 0:00:21]} Be7 {[%emt 0:00:12]} 26. b3 {[%emt 0:00:13]} Ba6 {[%emt 0:00:26]} 27. Nd4 {[%emt 0:00:42]} Rbc8 {[%emt 0:00:20]} 28. Rf1 {[%emt 0:00:49]} Bg5 {[%emt 0:01:38]} 29. Rh5 {[%emt 0:00:36]} Be7 {[%emt 0:00:31]} 30. Nf6+ {[%emt 0:00:34]} Bxf6 {[%emt 0:01:19]} 31. exf6 {[%emt 0:00:04]} Bxd3 {[%emt 0:01:05]} 32. Qg4 {[%emt 0:00:26]} Nxf6 {[%emt 0:00:39]} 33. Rxf6 {[%emt 0:00:12]} Qd8 {[%emt 0:00:41]} 34. Rf1 {[%emt 0:00:24]} Bxf1 {[%emt 0:00:13]} 35. Nxe6 {[%emt 0:01:16]} (35. Be3 $142) 35... fxe6 {[%emt 0:00:27]} 36. Qxe6+ {[%emt 0:00:02]} Kh8 {[%emt 0:00:27]} 37. Qg6 {[%emt 0:00:08]} Bxg2+ {[%emt 0:00:47]} 38. Kxg2 {[%emt 0:00:22] [#]} Qd2+ $19 {[%emt 0:00:41]} (38... Rc2+ $142 $1 {[%mdl 512]} 39. Kh3 (39. Qxc2 Qa8+) 39... Rc3+ 40. Qg3 Qd7+ 41. Kh4 Rxg3 42. hxg3 Rf1 43. Rxa5 Qd8+ 44. Kh3 Qxa5 45. Kh2 Qh5+ 46. Kg2 Qe2+ 47. Kh3 Rxg1 48. Kh4 h5 49. Kh3 Rh1#) 39. Kh1 {[%emt 0:00:33]} h6 {[%emt 0:00:28]} 40. Re5 {[%emt 0:00:43]} Qc2 {[%emt 0:00:27]} 41. Qxc2 {[%emt 0:31:21]} Rxc2 {[%emt 0:30:02]} 42. Rxa5 {[%emt 0:00:09]} Rf1 {[%emt 0:00:15]} 0-1

[Event "83rd ESP-ch Women-ch 2018"]
[Site "Linares"]
[Date "2018.08.24"]
[Round "5"]
[White "Lopez Varela, Pablo"]
[Black "Alvarez Fernandez, Enrique"]
[Result "1/2-1/2"]
[ECO "C00"]
[WhiteElo "2100"]
[BlackElo "2324"]
[Annotator "NA"]
[PlyCount "92"]
[EventDate "2018.08.09"]
[EventType "tourn"]
[EventCountry "ESP"]
[SourceTitle "playchess.com"]
[Source "ChessBase"]
[SourceQuality "1"]
[TimeControl "40/5400+30:1800+30"]

1. e4 {[%emt 0:00:00]} e6 {[%emt 0:00:00]} 2. Nf3 {[%emt 0:00:21]} d5 {[%emt 0:00:06]} 3. e5 {[%emt 0:00:04]} c5 {[%emt 0:00:37]} 4. b4 {[%emt 0:00:23]} c4 {[%emt 0:00:22]} 5. c3 {[%emt 0:00:05]} a5 {[%emt 0:20:12]} 6. b5 {[%emt 0:00:08]} Nd7 {[%emt 0:03:44] C00: French: Unusual White 2nd moves} 7. d4 {[%emt 0:04:49]} Ne7 $146 {[%emt 0:10:29]} ({Predecessor:} 7... cxd3 8. Bxd3 Qc7 9. Qe2 Ne7 10. Bf4 h6 11. h4 g6 12. O-O Bg7 13. Nbd2 b6 14. c4 {1-0 (49) Bortnyk,O (2568)-Stupak,K (2535) Lvov 2016}) 8. a4 {[%emt 0:02:58]} f6 {[%emt 0:04:43]} 9. Qe2 {[%emt 0:13:08]} Ng6 {[%emt 0:07:42]} 10. exf6 {[%emt 0:02:55]} Nxf6 {[%emt 0:00:35]} 11. Bg5 {[%emt 0:08:28]} ({Better is} 11. g3 $14) 11... Be7 {[%emt 0:03:57]} 12. Nbd2 {[%emt 0:03:38]} O-O {[%emt 0:02:24]} 13. Ne5 {[%emt 0:12:59]} Nxe5 {[%emt 0:01:02]} 14. dxe5 {[%emt 0:00:14]} Nd7 {[%emt 0:00:56]} 15. Bxe7 {[%emt 0:00:30]} Qxe7 {[%emt 0:00:03]} 16. Qe3 {[%emt 0:04:59]} Nc5 {[%emt 0:02:43]} 17. Be2 {[%emt 0:00:28]} Bd7 {[%emt 0:00:31]} 18. O-O {[%emt 0:00:31]} Be8 {[%emt 0:00:19]} 19. Nf3 {[%emt 0:04:21]} Bh5 {[%emt 0:05:24]} 20. Nd4 {[%emt 0:02:04]} Bxe2 {[%emt 0:00:20]} 21. Nxe2 {[%emt 0:00:22]} Rac8 {[%emt 0:05:15]} 22. Nd4 {[%emt 0:01:06]} g5 {[%emt 0:07:05]} 23. f3 {[%emt 0:06:29]} Rf7 {[%emt 0:01:11]} 24. Rfb1 {[%emt 0:04:05]} Nb3 {[%emt 0:03:37]} 25. Nxb3 {[%emt 0:00:22]} cxb3 {[%emt 0:00:02]} 26. Rxb3 {[%emt 0:02:19]} Qc5 {[%emt 0:01:02]} 27. Qxc5 {[%emt 0:07:25]} Rxc5 {[%emt 0:00:03]} 28. b6 {[%emt 0:00:28]} Rf4 {[%emt 0:01:23]} 29. Kf2 {[%emt 0:01:15]} Kf7 {[%emt 0:04:50]} 30. Ke3 {[%emt 0:03:06]} Ke7 {[%emt 0:00:31]} 31. g3 {[%emt 0:02:33]} Rfc4 {[%emt 0:01:21]} 32. Kd3 {[%emt 0:00:23]} Kd7 {[%emt 0:00:27]} 33. Raa3 {[%emt 0:00:26]} Ke7 {[%emt 0:02:34]} 34. Rb1 {[%emt 0:00:17]} Kf7 {[%emt 0:00:36]} 35. Rb2 {[%emt 0:05:06]} h5 {[%emt 0:01:11]} 36. h3 {[%emt 0:00:29]} h4 {[%emt 0:00:48]} 37. g4 {[%emt 0:00:26]} Ke7 {[%emt 0:01:39]} 38. Rb5 {[%emt 0:02:03]} Kd7 {[%emt 0:01:02]} 39. Rab3 {[%emt 0:03:16]} Kc6 {[%emt 0:07:16]} 40. Rxc5+ {[%emt 0:00:06]} Rxc5 {[%emt 0:00:03]} 41. Rb5 {[%emt 0:31:20]} Rc4 {[%emt 0:31:20]} (41... Rxb5 $15 42. axb5+ Kxb5) 42. Rxa5 {[%emt 0:00:04]} Rf4 {[%emt 0:00:25]} 43. Ke3 {[%emt 0:01:41]} ({White should play} 43. Ke2 $1 $14) 43... Rc4 {[%emt 0:00:07]} 44. Kd3 {[%emt 0:01:17]} Rf4 {[%emt 0:00:06]} 45. Ke3 {[%emt 0:00:45]} Rc4 {[%emt 0:00:09]} 46. Kd3 {[%emt 0:00:34]} Rf4 {[%emt 0:00:10] Kd4} 1/2-1/2

[Event "83rd ESP-ch Women-ch 2018"]
[Site "Linares"]
[Date "2018.08.24"]
[Round "5"]
[White "Gil Quilez, Sonia"]
[Black "Calzetta Ruiz, Monica"]
[Result "1-0"]
[ECO "A58"]
[WhiteElo "2066"]
[BlackElo "2302"]
[Annotator "NA"]
[PlyCount "91"]
[EventDate "2018.08.09"]
[EventType "tourn"]
[EventCountry "ESP"]
[SourceTitle "playchess.com"]
[Source "ChessBase"]
[SourceQuality "1"]
[TimeControl "40/5400+30:1800+30"]

1. d4 {[%emt 0:00:00]} Nf6 {[%emt 0:00:00]} 2. c4 {[%emt 0:00:00]} c5 {[%emt 0:00:00]} 3. d5 {[%emt 0:00:20]} b5 {[%emt 0:00:00]} 4. cxb5 {[%emt 0:00:13]} a6 {[%emt 0:00:00]} 5. bxa6 {[%emt 0:00:23]} g6 {[%emt 0:00:40]} 6. Nc3 {[%emt 0:00:30] A58: Benko/Volga Gambit: Lines with 5 bxa6} Bg7 {[%emt 0:00:36]} 7. Nf3 {[%emt 0:01:16]} O-O {[%emt 0:00:24]} 8. a7 {[%emt 0:00:44]} Rxa7 {[%emt 0:00:15]} 9. e4 {[%emt 0:00:09]} d6 {[%emt 0:04:59]} 10. Be2 {[%emt 0:00:18]} Nbd7 {[%emt 0:06:39]} 11. O-O {[%emt 0:01:10]} Nb6 $146 {[%emt 0:11:16]} ({Predecessor:} 11... Qb6 12. Qc2 Ba6 13. Bxa6 Rxa6 {½-½ (68) Ponomariov,R (2709)-Andriasian,Z (2621) Tallinn 2016}) 12. Qc2 {[%emt 0:05:16]} Bd7 {[%emt 0:09:27]} 13. Nd2 {[%emt 0:08:37]} e6 {[%emt 0:17:05] [#]} 14. Nc4 {[%emt 0:11:51]} (14. dxe6 $1 $16 fxe6 15. a4) 14... exd5 {[%emt 0:05:49]} 15. Nxd6 {[%emt 0:03:11]} dxe4 {[%emt 0:07:08]} 16. Ncb5 {[%emt 0:08:42]} Bxb5 {[%emt 0:07:33]} 17. Nxb5 {[%emt 0:00:06]} Ra5 {[%emt 0:00:06]} 18. Qxc5 {[%emt 0:09:35]} Na4 {[%emt 0:01:49]} 19. Qc2 {[%emt 0:02:38]} Qb8 {[%emt 0:00:51]} 20. Qb3 {[%emt 0:05:12]} Rd8 {[%emt 0:06:04]} 21. Rd1 {[%emt 0:09:35]} Rxd1+ {[%emt 0:07:48]} 22. Qxd1 {[%emt 0:00:02]} h5 {[%emt 0:06:06]} 23. h3 {[%emt 0:05:36]} Rxb5 {[%emt 0:04:09]} 24. Qxa4 {[%emt 0:00:23]} Rb4 {[%emt 0:00:11]} 25. Qc2 {[%emt 0:01:15]} Nd5 {[%emt 0:00:49]} 26. a3 {[%emt 0:05:08]} Rb6 {[%emt 0:02:09]} 27. Ra2 {[%emt 0:03:56]} Nf4 {[%emt 0:00:48]} 28. Qxe4 {[%emt 0:04:29]} Nxe2+ {[%emt 0:00:10]} 29. Qxe2 {[%emt 0:00:02]} Re6 {[%emt 0:00:21]} 30. Be3 {[%emt 0:05:59]} Bd4 {[%emt 0:00:39]} 31. b4 {[%emt 0:01:58]} Bxe3 {[%emt 0:00:12]} 32. fxe3 {[%emt 0:00:03]} Qa7 {[%emt 0:00:08]} 33. Qf2 {[%emt 0:00:35]} Rxe3 {[%emt 0:01:04]} 34. Re2 {[%emt 0:02:55]} Rxa3 {[%emt 0:00:02]} 35. Qxa7 {[%emt 0:01:18]} Rxa7 {[%emt 0:00:02]} 36. Kf2 {[%emt 0:00:07]} Rb7 {[%emt 0:01:23]} 37. Rb2 {[%emt 0:01:20]} f5 {[%emt 0:00:25]} 38. Ke3 {[%emt 0:00:06]} Kf7 {[%emt 0:00:12]} 39. Kd4 {[%emt 0:00:12]} g5 {[%emt 0:00:35]} 40. b5 {[%emt 0:00:20]} Kf6 {[%emt 0:00:18]} 41. Kd5 {[%emt 0:30:36]} Rb8 {[%emt 0:30:17]} 42. b6 {[%emt 0:00:15]} f4 {[%emt 0:00:34]} 43. b7 $18 {[%emt 0:00:17]} g4 {[%emt 0:00:25]} 44. hxg4 {[%emt 0:01:23]} h4 {[%emt 0:00:55]} 45. Ke4 {[%emt 0:00:52]} Kg5 {[%emt 0:00:01]} 46. Kf3 {[%emt 0:00:13]} 1-0

[Event "83rd ESP-ch Women-ch 2018"]
[Site "Linares"]
[Date "2018.08.24"]
[Round "5"]
[White "Gonzalez Garcia, Francisco"]
[Black "Comellas Martos, Lidia"]
[Result "1-0"]
[ECO "B12"]
[WhiteElo "1972"]
[BlackElo "2001"]
[Annotator "NA"]
[PlyCount "125"]
[EventDate "2018.08.09"]
[EventType "tourn"]
[EventCountry "ESP"]
[SourceTitle "playchess.com"]
[Source "ChessBase"]
[SourceQuality "1"]
[TimeControl "40/5400+30:1800+30"]

1. e4 {[%emt 0:00:00]} c6 {[%emt 0:00:00]} 2. d4 {[%emt 0:00:00]} d5 {[%emt 0:00:00]} 3. e5 {[%emt 0:00:00]} c5 {[%emt 0:00:09]} 4. c3 {[%emt 0:00:00]} Nc6 {[%emt 0:00:15]} 5. Nf3 {[%emt 0:00:00]} Bg4 {[%emt 0:01:04]} 6. Be2 {[%emt 0:00:00]} e6 {[%emt 0:00:41]} 7. O-O {[%emt 0:03:05]} Bxf3 {[%emt 0:10:19] B12: Caro-Kann (Vorstoß-Variante)} (7... Nh6 8. Bxh6 gxh6 9. Nbd2 Qb6 10. Qb3 Be7 11. Rfe1 cxd4 12. Nxd4 Qxb3 13. N2xb3 Nxe5 14. f3 Bh5 15. g4 Rg8 16. Kf1 Bg6 17. f4 Nd3 {½-½ (17) Wang,P (2464)-Iotov,V (2574) Richardson 2011}) 8. Bxf3 {[%emt 0:03:49]} cxd4 {[%emt 0:02:12]} 9. cxd4 {[%emt 0:00:07]} Qb6 {[%emt 0:00:03]} 10. Be3 {[%emt 0:08:09]} Qxb2 {[%emt 0:01:59]} 11. Nd2 {[%emt 0:01:15]} Qb6 {[%emt 0:00:05]} 12. Rb1 {[%emt 0:01:01]} Qc7 {[%emt 0:00:06]} 13. Qb3 {[%emt 0:01:55]} Rb8 $146 {[%emt 0:05:18]} 14. Rfc1 {[%emt 0:00:35]} Nge7 {[%emt 0:06:07]} 15. Qa4 {[%emt 0:01:11]} Qd7 {[%emt 0:07:55]} 16. Qd1 {[%emt 0:01:10]} Nf5 {[%emt 0:05:04]} 17. Nb3 {[%emt 0:01:08]} Ba3 {[%emt 0:00:59]} 18. Nc5 {[%emt 0:01:23]} Bxc5 {[%emt 0:00:52]} 19. Rxc5 {[%emt 0:00:04]} O-O {[%emt 0:01:58]} 20. Be2 {[%emt 0:00:48]} a6 {[%emt 0:11:51]} 21. Rbc1 {[%emt 0:02:00]} Rfc8 {[%emt 0:05:00]} 22. Qa4 {[%emt 0:01:04]} Nfe7 {[%emt 0:12:28]} 23. Qa3 {[%emt 0:09:05]} Nd8 {[%emt 0:05:31]} 24. Bg5 {[%emt 0:02:03]} Rxc5 {[%emt 0:04:30]} 25. Rxc5 {[%emt 0:00:52]} Ndc6 {[%emt 0:00:22]} 26. Qb2 {[%emt 0:05:56]} Nf5 {[%emt 0:02:22]} 27. Be3 {[%emt 0:00:48]} Rc8 {[%emt 0:00:35]} 28. Bg4 {[%emt 0:04:02]} Nce7 {[%emt 0:03:07]} 29. Rxc8+ {[%emt 0:07:46]} Qxc8 {[%emt 0:00:28]} 30. Be2 {[%emt 0:00:42]} Qc6 {[%emt 0:02:12]} 31. g4 {[%emt 0:00:52]} Nxe3 {[%emt 0:00:29]} 32. fxe3 {[%emt 0:00:03]} Nc8 {[%emt 0:00:44]} 33. Bd3 {[%emt 0:03:54]} b5 {[%emt 0:01:53]} 34. h4 {[%emt 0:04:50]} h6 {[%emt 0:02:31]} 35. g5 {[%emt 0:01:49]} hxg5 {[%emt 0:00:05]} 36. hxg5 {[%emt 0:00:15]} g6 {[%emt 0:03:16]} 37. Kf2 {[%emt 0:00:57]} Ne7 {[%emt 0:01:22]} 38. Qa3 {[%emt 0:01:30]} Kf8 {[%emt 0:01:59]} 39. Qa5 {[%emt 0:01:26]} Ke8 {[%emt 0:01:18]} 40. a4 {[%emt 0:00:08]} bxa4 {[%emt 0:01:26]} 41. Bxa6 {[%emt 0:30:20]} Qc2+ {[%emt 0:30:04]} 42. Ke1 {[%emt 0:02:33]} Ng8 {[%emt 0:01:43]} 43. Bb5+ {[%emt 0:03:35]} Kf8 {[%emt 0:00:06]} 44. Bxa4 {[%emt 0:01:06]} Qb1+ {[%emt 0:00:18]} 45. Kf2 {[%emt 0:01:11]} Qf5+ {[%emt 0:00:05]} 46. Ke2 {[%emt 0:00:50]} Qxg5 {[%emt 0:00:06]} 47. Qe1 {[%emt 0:04:18]} Ne7 {[%emt 0:00:53]} 48. Bc2 {[%emt 0:00:26]} Nf5 {[%emt 0:00:52]} 49. Qf2 {[%emt 0:01:59]} Kg7 {[%emt 0:00:30]} 50. Bd3 {[%emt 0:01:12]} Qh5+ {[%emt 0:00:56]} 51. Kd2 {[%emt 0:00:38]} Qg5 {[%emt 0:00:15]} 52. Ke2 {[%emt 0:00:12]} Qg4+ {[%emt 0:00:50]} 53. Ke1 {[%emt 0:01:10]} Qh3 {[%emt 0:00:31]} 54. Ke2 {[%emt 0:02:57]} Qh6 {[%emt 0:00:35]} 55. Bc2 {[%emt 0:01:30]} Qh1 {[%emt 0:00:17]} 56. Bd3 {[%emt 0:01:26]} Qc1 {[%emt 0:00:41]} 57. Qf4 {[%emt 0:03:08]} (57. Qf3 $1 $15) 57... Qg1 {[%emt 0:00:22]} 58. Bxf5 {[%emt 0:01:14]} gxf5 {[%emt 0:00:35]} 59. Kd2 {[%emt 0:04:39]} Qg2+ {[%emt 0:00:07]} 60. Ke1 {[%emt 0:00:45]} Qg4 {[%emt 0:00:26]} 61. Qf2 {[%emt 0:01:29]} ({White must play} 61. Qh2 $1 $15) 61... Kg6 {[%emt 0:00:57]} 62. Kf1 $2 {[%emt 0:04:10]} (62. Kd2) 62... Kg5 {[%emt 0:00:31]} 63. Qd2 $19 {[%emt 0:00:39]} 1-0

[Event "83rd ESP-ch Women-ch 2018"]
[Site "Linares"]
[Date "2018.08.24"]
[Round "5"]
[White "Anillo Fernandez, Isabel Maria"]
[Black "Sanchez Vigon, David"]
[Result "0-1"]
[ECO "B36"]
[WhiteElo "1924"]
[BlackElo "2220"]
[Annotator "NA"]
[PlyCount "104"]
[EventDate "2018.08.09"]
[EventType "tourn"]
[EventCountry "ESP"]
[SourceTitle "playchess.com"]
[Source "ChessBase"]
[SourceQuality "1"]
[TimeControl "40/5400+30:1800+30"]

1. e4 {[%emt 0:00:00]} c5 {[%emt 0:00:00]} 2. Nf3 {[%emt 0:00:00]} Nc6 {[%emt 0:00:00]} 3. d4 {[%emt 0:00:41]} cxd4 {[%emt 0:00:00]} 4. Nxd4 {[%emt 0:00:11]} g6 {[%emt 0:00:12]} 5. c4 {[%emt 0:00:56]} Nf6 {[%emt 0:01:37]} 6. Nc3 {[%emt 0:00:33]} d6 {[%emt 0:00:11]} 7. Be2 {[%emt 0:00:36]} Nxd4 {[%emt 0:00:12]} 8. Qxd4 {[%emt 0:00:44]} Bg7 {[%emt 0:00:12]} 9. Be3 {[%emt 0:01:14]} O-O {[%emt 0:00:25]} 10. Qd3 {[%emt 0:00:50]} Be6 {[%emt 0:01:52] B36: Sicilian: Maroczy Bind: Gurgenidze System} (10... a5 11. Bd4 a4 12. O-O Qa5 13. f4 Be6 14. f5 Bd7 15. Kh1 Bc6 16. Nd5 Bxd5 17. exd5 Nd7 18. Bxg7 Kxg7 {0-1 (63) Anton Guijarro,D (2666)-Guseinov,G (2646) Riadh 2017}) 11. Bd4 {[%emt 0:03:45]} Nd7 {[%emt 0:12:37]} 12. Bxg7 {[%emt 0:01:18]} Kxg7 {[%emt 0:00:07]} 13. O-O {[%emt 0:03:35]} Qb6 {[%emt 0:02:40]} 14. b3 {[%emt 0:03:29]} a5 {[%emt 0:00:42]} 15. Nd5 $146 {[%emt 0:09:44]} ({Predecessor:} 15. Kh1 f5 16. exf5 Rxf5 17. f4 Raf8 18. Bg4 {1-0 (49) Sredojevic,I (2382)-Blesic,V (2362) Dvorovi 2016}) 15... Bxd5 {[%emt 0:00:49]} 16. exd5 {[%emt 0:01:32]} Nc5 {[%emt 0:06:58]} 17. Qd4+ {[%emt 0:14:00]} Kg8 {[%emt 0:00:26]} 18. Bd1 {[%emt 0:05:28]} a4 {[%emt 0:16:45]} 19. Bc2 {[%emt 0:02:44]} axb3 {[%emt 0:16:50]} 20. axb3 {[%emt 0:00:32]} Qb4 {[%emt 0:00:10]} 21. Qe3 {[%emt 0:03:43]} Rxa1 {[%emt 0:01:49]} 22. Rxa1 {[%emt 0:00:10]} Re8 {[%emt 0:00:40]} 23. g3 {[%emt 0:08:20]} Qb6 {[%emt 0:20:13]} 24. Qc3 {[%emt 0:15:29]} Nd7 {[%emt 0:01:35]} 25. b4 {[%emt 0:05:09]} Nf6 {[%emt 0:00:44]} 26. Re1 {[%emt 0:06:36]} Qc7 {[%emt 0:00:58]} 27. Qd4 {[%emt 0:01:15]} Rc8 {[%emt 0:00:38]} 28. Bd3 {[%emt 0:00:55]} Kf8 {[%emt 0:00:52]} 29. Rc1 {[%emt 0:01:56]} b6 {[%emt 0:00:09]} 30. h3 {[%emt 0:01:20]} Kg8 {[%emt 0:00:05]} 31. Ra1 {[%emt 0:01:24]} Nd7 {[%emt 0:02:38]} 32. Be2 {[%emt 0:01:44]} Nf6 {[%emt 0:06:04]} 33. Kg2 {[%emt 0:03:14]} Qb7 {[%emt 0:00:59]} 34. Bf3 {[%emt 0:00:36]} Nd7 {[%emt 0:00:29]} 35. Kg1 {[%emt 0:01:23]} Ne5 {[%emt 0:00:27]} 36. Be2 {[%emt 0:00:23]} Rxc4 {[%emt 0:00:13]} 37. Qd2 {[%emt 0:01:17]} Rc7 {[%emt 0:00:26]} 38. Rd1 {[%emt 0:01:11]} Qc8 {[%emt 0:00:39]} 39. Kg2 {[%emt 0:00:39]} Qf5 {[%emt 0:00:50]} 40. Qd4 {[%emt 0:00:39]} Rc2 {[%emt 0:00:54]} 41. Rd2 {[%emt 0:30:33]} Rxd2 {[%emt 0:30:42]} 42. Qxd2 {[%emt 0:00:03]} Qe4+ {[%emt 0:00:30]} 43. f3 {[%emt 0:00:52]} Qb1 {[%emt 0:00:02]} 44. b5 {[%emt 0:00:32]} Qb3 {[%emt 0:01:12]} 45. Qc1 {[%emt 0:00:35]} Qxd5 {[%emt 0:00:25]} 46. Qc8+ {[%emt 0:00:37]} Kg7 {[%emt 0:00:06]} 47. Qc3 {[%emt 0:00:13]} Qc5 {[%emt 0:00:43]} 48. Qb2 {[%emt 0:00:41]} f6 {[%emt 0:00:19]} 49. Qa2 {[%emt 0:00:28]} d5 {[%emt 0:00:45]} 50. f4 {[%emt 0:00:34]} Nc4 {[%emt 0:00:13]} 51. Qa7 {[%emt 0:00:33]} (51. Qb3 $142) 51... Ne3+ $19 {[%emt 0:00:26]} 52. Kf3 {[%emt 0:00:21]} Nf5 {[%emt 0:00:10]} 0-1

[Event "83rd ESP-ch Women-ch 2018"]
[Site "Linares"]
[Date "2018.08.26"]
[Round "7"]
[White "Sanchez Aller, Fernando"]
[Black "Arroyo Rodriguez, Jesus"]
[Result "1-0"]
[ECO "B23"]
[WhiteElo "2345"]
[BlackElo "2099"]
[Annotator "NA"]
[PlyCount "51"]
[EventDate "2018.08.09"]
[EventType "tourn"]
[EventCountry "ESP"]
[SourceTitle "playchess.com"]
[Source "ChessBase"]
[SourceQuality "1"]
[TimeControl "40/5400+30:1800+30"]

1. e4 {[%emt 0:00:00]} c5 {[%emt 0:03:38]} 2. Nc3 {[%emt 0:00:00]} g6 {[%emt 0:00:09]} 3. d4 {[%emt 0:00:02]} Bg7 {[%emt 0:03:02]} 4. dxc5 {[%emt 0:00:06]} Qa5 {[%emt 0:02:10]} 5. Bd2 {[%emt 0:00:06]} Qxc5 {[%emt 0:00:58]} 6. Nd5 {[%emt 0:00:06]} Na6 {[%emt 0:11:35]} 7. Bxa6 {[%emt 0:02:51]} bxa6 {[%emt 0:00:14]} 8. Nf3 {[%emt 0:03:21]} Rb8 {[%emt 0:11:26]} 9. O-O {[%emt 0:00:48]} e6 {[%emt 0:02:33]} 10. Be3 {[%emt 0:12:12]} Qa5 {[%emt 0:01:31]} 11. Bd4 {[%emt 0:00:29]} f6 {[%emt 0:00:38]} 12. Re1 {[%emt 0:03:55]} ({Much weaker is} 12. Bxa7 Rb7 $15) (12. Bc3 $16 Qc5 13. Bd4) 12... exd5 {[%emt 0:03:37]} 13. exd5+ {[%emt 0:00:07]} Kf7 {[%emt 0:00:12]} 14. Qe2 {[%emt 0:02:28]} Qd8 {[%emt 0:09:30]} 15. d6 {[%emt 0:01:12]} Bb7 {[%emt 0:01:56]} 16. Qc4+ {[%emt 0:11:11]} Kf8 {[%emt 0:00:09] [#]} 17. Bc5 $16 {[%emt 0:00:36]} Rc8 {[%emt 0:18:45]} 18. Re7 {[%emt 0:01:15]} Nh6 {[%emt 0:00:02]} 19. Nd4 {[%emt 0:03:43]} f5 {[%emt 0:05:57]} 20. Ne6+ {[%emt 0:03:52]} dxe6 {[%emt 0:00:23]} 21. Rxb7 {[%emt 0:00:08]} Rxc5 {[%emt 0:01:49]} 22. Qxc5 {[%emt 0:00:14]} Nf7 {[%emt 0:02:24]} 23. Rd1 {[%emt 0:02:04]} Bf6 {[%emt 0:02:43]} 24. Qc7 {[%emt 0:00:25]} Qe8 {[%emt 0:03:33]} 25. d7 {[%emt 0:00:12]} Qe7 {[%emt 0:01:03]} 26. d8=Q+ {[%emt 0:00:14]} 1-0